[Event "Chpt Reg Jeunes Occitanie 2026 - Espalion"]
[Site "Espalion, France"]
[Round "4.11"]
[ECO "?"]
[Annotator "?"]
[TimeControl "1h30 + 30sec/cp"]

1. d4 {[%clk 1:30:59][%emt 0:00:01]} 1... Nf6 {[%clk 1:30:49][%emt 0:00:10]}
2. c4 {[%clk 1:31:26][%emt 0:00:04]} 2... g6 {[%clk 1:30:52][%emt 0:00:27]} 3.
Nc3 {[%clk 1:31:52][%emt 0:00:04]} 3... Bg7 {[%clk 1:31:17][%emt 0:00:05]} 4.
e4 {[%clk 1:32:18][%emt 0:00:04]} 4... d6 {[%clk 1:31:41][%emt 0:00:05]} 5.
Nf3 {[%clk 1:32:45][%emt 0:00:04]} 5... O-O {[%clk 1:32:03][%emt 0:00:08]} 6.
Be2 {[%clk 1:33:11][%emt 0:00:04]} 6... e5 {[%clk 1:32:25][%emt 0:00:07]} 7.
O-O {[%clk 1:33:37][%emt 0:00:05]} 7... c6 {[%clk 1:32:17][%emt 0:00:37]} 8.
d5 {[%clk 1:34:04][%emt 0:00:04]} 8... a5 {[%clk 1:31:11][%emt 0:01:35]} 9. h3
{[%clk 1:31:21][%emt 0:03:14]} 9... Na6 {[%clk 1:30:48][%emt 0:00:52]} 10. Be3
{[%emt 0:02:20]} 10... Nh5 {[%clk 1:29:37]} 11. Qd2 {[%clk 1:28:49][%emt
0:02:54]} 11... f5 {[%clk 1:28:14][%emt 0:01:52]} 12. exf5 {[%clk
1:27:23][%emt 0:01:56]} 12... gxf5 {[%clk 1:26:22][%emt 0:02:22]} 13. Bg5
{[%clk 1:20:34][%emt 0:07:19]} 13... Qb6 {[%clk 1:04:52][%emt 0:22:00]} 14.
Be7 {[%clk 1:16:28][%emt 0:04:37]} 14... Re8 {[%clk 1:02:56][%emt 0:02:25]}
15. Bxd6 {[%clk 1:13:21][%emt 0:03:37]} 15... Ng3 {[%clk 0:53:29][%emt
0:09:57]} 16. Rfe1 {[%clk 1:12:31][%emt 0:01:20]} 16... cxd5 {[%clk
0:48:13][%emt 0:05:45]} 17. Qxd5+ {[%clk 1:11:14][%emt 0:01:47]} 17... Be6
{[%clk 0:47:37][%emt 0:01:06]} 18. Qd2 {[%clk 1:10:42][%emt 0:01:01]} 18...
Rad8 {[%clk 0:45:19][%emt 0:02:49]} 19. Rad1 {[%clk 1:10:24][%emt 0:00:47]}
19... Nxe2+ {[%clk 0:41:44][%emt 0:04:07]} 20. Nxe2 {[%clk 1:06:49][%emt
0:04:05]} 20... Bxc4 {[%clk 0:36:04][%emt 0:06:10]} 21. b3 {[%clk
1:06:09][%emt 0:01:10]} 21... Bxe2 {[%clk 0:33:14][%emt 0:03:20]} 22. Rxe2
{[%clk 1:06:25][%emt 0:00:13]} 22... Re6 {[%clk 0:32:12][%emt 0:01:32]} 23.
Qg5 {[%clk 1:01:13][%emt 0:05:41]} 23... Rexd6 {[%clk 0:30:38][%emt 0:02:05]}
24. Rxd6 {[%clk 1:01:30][%emt 0:00:13]} 24... Rxd6 {[%clk 0:30:52][%emt
0:00:15]} 25. Nh4 {[%clk 1:01:02][%emt 0:00:58]} 25... Qd8 {[%clk
0:27:45][%emt 0:03:38]} 26. Qh5 {[%clk 1:00:24][%emt 0:01:08]} 26... Rh6
{[%clk 0:26:51][%emt 0:01:24]} 27. Qxf5 {[%clk 1:00:46][%emt 0:00:08]} 27...
Rxh4 {[%clk 0:26:33][%emt 0:00:49]} 28. Qe6+ {[%clk 1:01:04][%emt 0:00:11]}
28... Kh8 {[%clk 0:26:55][%emt 0:00:09]} 29. Rxe5 {[%clk 1:00:22][%emt
0:01:11]} 29... Bxe5 {[%clk 0:22:21][%emt 0:05:05]} 30. Qxe5+ {[%clk
1:00:47][%emt 0:00:05]} 30... Kg8 {[%clk 0:22:48][%emt 0:00:03]} 31. Qe6+
{[%clk 1:01:09][%emt 0:00:09]} 31... Kf8 {[%clk 0:21:59][%emt 0:01:18]} 32.
Qf5+ {[%clk 1:01:31][%emt 0:00:09]} 32... Ke7 {[%clk 0:21:43][%emt 0:00:45]}
33. Qe5+ {[%clk 1:01:01][%emt 0:01:01]} 33... Kd7 {[%clk 0:21:57][%emt
0:00:10]} 34. Qd5+ {[%clk 1:01:21][%emt 0:00:16]} 34... Kc8 {[%clk
0:22:04][%emt 0:00:13]} 35. Qe6+ {[%clk 1:01:38][%emt 0:00:22]} 35... Kb8
{[%clk 0:22:27][%emt 0:00:06]} 36. Qe5+ {[%clk 1:02:02][%emt 0:00:07]} 36...
Ka8 {[%clk 0:22:49][%emt 0:00:07]} 0-1

[White "VALMIR, Clovis"]
[Black "VALYAEV, Paul"]
[WhiteElo "2006"]
[BlackElo "1746"]
[Result "1-0"]
[Date "2026.03.05"]

[Event "Chpt Reg Jeunes Occitanie 2026 - Espalion"]
[Site "Espalion, France"]
[Round "4.12"]
[ECO "?"]
[Annotator "?"]
[TimeControl "1h30 + 30sec/cp"]

1. e4 {[%clk 1:30:57][%emt 0:00:02]} 1... c5 {[%clk 1:30:52][%emt 0:00:07]} 2.
Nf3 {[%clk 1:31:24][%emt 0:00:04]} 2... d6 {[%clk 1:31:16][%emt 0:00:07]} 3.
d4 {[%clk 1:31:45][%emt 0:00:08]} 3... cxd4 {[%clk 1:31:41][%emt 0:00:06]} 4.
Nxd4 {[%clk 1:32:11][%emt 0:00:04]} 4... Nf6 {[%clk 1:32:05][%emt 0:00:05]} 5.
Nc3 {[%clk 1:32:38][%emt 0:00:03]} 5... a6 {[%clk 1:32:32][%emt 0:00:04]} 6.
f3 {[%clk 1:31:23][%emt 0:01:44]} 6... e5 {[%clk 1:31:25][%emt 0:01:36]} 7.
Nb3 {[%clk 1:30:58][%emt 0:00:56]} 7... Be6 {[%clk 1:31:29][%emt 0:00:26]} 8.
Be3 {[%clk 1:31:24][%emt 0:00:04]} 8... Nbd7 {[%clk 1:28:43][%emt 0:03:16]} 9.
Qd2 {[%clk 1:31:06][%emt 0:00:49]} 9... Be7 {[%clk 1:29:06][%emt 0:00:07]} 10.
O-O-O {[%clk 1:30:48][%emt 0:00:48]} 10... O-O {[%clk 1:29:14][%emt 0:00:21]}
11. g4 {[%clk 1:31:13][%emt 0:00:05]} 11... b5 {[%clk 1:29:42][%emt 0:00:02]}
12. g5 {[%clk 1:31:39][%emt 0:00:04]} 12... Nh5 {[%clk 1:25:58][%emt 0:04:13]}
13. Kb1 {[%emt 0:14:26]} 13... Rc8 {[%clk 1:12:12]} 14. Nd5 {[%clk
1:24:22][%emt 0:08:08]} 14... Bxd5 {[%clk 0:52:58][%emt 0:19:43]} 15. exd5
{[%clk 1:24:34][%emt 0:00:18]} 15... Qc7 {[%clk 0:44:35][%emt 0:08:54]} 16.
Na5 {[%clk 1:22:21][%emt 0:02:42]} 16... Nf4 {[%clk 0:36:01][%emt 0:09:04]}
17. h4 {[%clk 1:16:37][%emt 0:06:14]} 17... Nb6 {[%clk 0:33:22][%emt 0:03:09]}
18. Bxf4 {[%clk 1:16:04][%emt 0:01:04]} 18... exf4 {[%clk 0:33:36][%emt
0:00:16]} 19. Bh3 {[%clk 1:16:27][%emt 0:00:06]} 19... Rce8 {[%clk
0:30:48][%emt 0:03:18]} 20. Nc6 {[%clk 1:15:51][%emt 0:01:06]} 20... f6 {[%clk
0:22:12][%emt 0:09:06]} 21. Be6+ {[%clk 1:16:04][%emt 0:00:18]} 21... Kh8
{[%clk 0:22:38][%emt 0:00:03]} 22. g6 {[%clk 1:16:09][%emt 0:00:25]} 22... h6
{[%clk 0:20:37][%emt 0:02:31]} 23. Bf7 {[%clk 1:15:08][%emt 0:01:32]} 23...
Rc8 {[%clk 0:19:12][%emt 0:01:54]} 24. Rde1 {[%clk 1:15:28][%emt 0:00:10]}
24... Nc4 {[%clk 0:19:10][%emt 0:00:32]} 25. Qxf4 {[%clk 1:14:41][%emt
0:01:16]} 25... Ne5 {[%clk 0:19:26][%emt 0:00:15]} 26. Be6 {[%clk
1:14:48][%emt 0:00:23]} 26... Ra8 {[%clk 0:17:34][%emt 0:02:22]} 27. Nd4
{[%clk 1:14:30][%emt 0:00:48]} 27... Nxg6 {[%clk 0:16:42][%emt 0:01:22]} 28.
Qg3 {[%clk 1:14:51][%emt 0:00:09]} 28... Ne5 {[%clk 0:16:39][%emt 0:00:33]}
29. f4 {[%clk 1:15:13][%emt 0:00:09]} 29... Nc4 {[%clk 0:16:47][%emt 0:00:22]}
30. Bf5 {[%clk 1:15:35][%emt 0:00:07]} 30... Bd8 {[%clk 0:15:59][%emt 0:01:19]}
 31. Qg6 {[%clk 1:15:44][%emt 0:00:20]} 31... Kg8 {[%clk 0:16:27][%emt
0:00:03]} 32. Qh7+ {[%clk 1:16:00][%emt 0:00:14]} 1-0

[White "JARRY, Pierre"]
[Black "MARTINEZ, Julien"]
[WhiteElo "1717"]
[BlackElo "1920"]
[Result "1-0"]
[Date "2026.03.05"]

[Event "Chpt Reg Jeunes Occitanie 2026 - Espalion"]
[Site "Espalion, France"]
[Round "4.13"]
[ECO "?"]
[Annotator "?"]
[TimeControl "1h30 + 30sec/cp"]

1. d4 {[%clk 1:30:57][%emt 0:00:03]} 1... d5 {[%clk 1:30:55][%emt 0:00:06]} 2.
c4 {[%clk 1:31:20][%emt 0:00:06]} 2... e6 {[%clk 1:31:21][%emt 0:00:04]} 3.
Nc3 {[%clk 1:31:43][%emt 0:00:07]} 3... Nf6 {[%clk 1:31:45][%emt 0:00:06]} 4.
Bg5 {[%clk 1:32:01][%emt 0:00:13]} 4... Be7 {[%clk 1:32:10][%emt 0:00:05]} 5.
e3 {[%clk 1:32:14][%emt 0:00:17]} 5... c6 {[%clk 1:32:32][%emt 0:00:08]} 6.
Nf3 {[%clk 1:32:02][%emt 0:00:41]} 6... Nbd7 {[%clk 1:32:36][%emt 0:00:26]} 7.
cxd5 {[%clk 1:31:28][%emt 0:01:05]} 7... exd5 {[%clk 1:33:00][%emt 0:00:06]}
8. Bd3 {[%clk 1:31:30][%emt 0:00:28]} 8... h6 {[%clk 1:33:24][%emt 0:00:05]}
9. Bh4 {[%clk 1:31:19][%emt 0:00:40]} 9... O-O {[%clk 1:33:48][%emt 0:00:07]}
10. O-O {[%clk 1:30:28][%emt 0:01:21]} 10... Re8 {[%clk 1:34:14][%emt 0:00:04]}
 11. Qc2 {[%clk 1:26:10][%emt 0:04:49]} 11... Ne4 {[%clk 1:34:11][%emt
0:00:32]} 12. Bxe7 {[%clk 1:26:20][%emt 0:00:20]} 12... Qxe7 {[%clk
1:34:34][%emt 0:00:07]} 13. Nd2 {[%clk 1:25:49][%emt 0:01:00]} 13... Ndf6
{[%clk 1:34:49][%emt 0:00:16]} 14. Ndxe4 {[%clk 1:25:49][%emt 0:00:30]} 14...
Nxe4 {[%clk 1:35:10][%emt 0:00:09]} 15. Nxe4 {[%clk 1:25:59][%emt 0:00:20]}
15... dxe4 {[%clk 1:35:33][%emt 0:00:07]} 16. Bc4 {[%clk 1:25:23][%emt
0:01:07]} 16... Qg5 {[%clk 1:34:26][%emt 0:01:35]} 17. Kh1 {[%clk
1:23:28][%emt 0:02:27]} 17... Be6 {[%clk 1:33:12][%emt 0:01:43]} 18. b4 {[%clk
1:19:41][%emt 0:04:18]} 18... h5 {[%clk 1:25:02][%emt 0:08:39]} 19. Bxe6
{[%clk 1:04:34][%emt 0:15:37]} 19... Rxe6 {[%clk 1:25:25][%emt 0:00:07]} 20.
Qc5 {[%clk 1:04:59][%emt 0:00:05]} 20... Rg6 {[%clk 1:23:44][%emt 0:02:11]}
21. Qxg5 {[%clk 1:04:28][%emt 0:01:01]} 21... Rxg5 {[%clk 1:24:09][%emt
0:00:05]} 22. Rab1 {[%clk 1:03:50][%emt 0:01:08]} 22... Kf8 {[%clk
1:23:13][%emt 0:01:25]} 23. Rfc1 {[%clk 1:03:20][%emt 0:01:01]} 23... Ke8
{[%clk 1:23:03][%emt 0:00:38]} 24. Rc5 {[%clk 1:01:34][%emt 0:02:17]} 24...
Rd5 {[%clk 1:21:56][%emt 0:01:38]} 25. Kg1 {[%clk 1:00:21][%emt 0:01:42]}
25... Kd7 {[%clk 1:22:02][%emt 0:00:24]} 26. Kf1 {[%clk 0:59:33][%emt 0:01:18]}
 26... Rc8 {[%clk 1:18:49][%emt 0:03:39]} 27. Ke2 {[%clk 0:56:54][%emt
0:03:13]} 27... b6 {[%clk 1:18:58][%emt 0:00:21]} 28. Rc2 {[%clk 0:56:45][%emt
0:00:39]} 28... Rb8 {[%clk 1:18:31][%emt 0:00:57]} 29. Rbc1 {[%clk
0:55:58][%emt 0:01:17]} 29... Rc8 {[%clk 1:17:10][%emt 0:01:52]} 30. f3 {[%clk
0:50:32][%emt 0:05:55]} 30... exf3+ {[%clk 1:13:52][%emt 0:03:48]} 31. gxf3
{[%clk 0:50:42][%emt 0:00:19]} 31... Rg5 {[%clk 1:14:04][%emt 0:00:18]} 32. e4
{[%clk 0:50:16][%emt 0:00:57]} 32... Rg2+ {[%clk 1:14:11][%emt 0:00:22]} 33.
Ke3 {[%clk 0:50:05][%emt 0:00:41]} 33... Rxc2 {[%clk 1:14:35][%emt 0:00:06]}
34. Rxc2 {[%clk 0:50:32][%emt 0:00:04]} 34... Re8 {[%clk 1:13:44][%emt
0:01:19]} 35. f4 {[%clk 0:49:39][%emt 0:01:24]} 35... Kd6 {[%clk 1:13:14][%emt
0:01:00]} 36. Rg2 {[%clk 0:46:43][%emt 0:03:25]} 36... g6 {[%clk 1:13:23][%emt
0:00:22]} 37. h4 {[%clk 0:46:46][%emt 0:00:27]} 37... Re7 {[%clk 1:10:08][%emt
0:03:43]} 38. Kd3 {[%clk 0:44:27][%emt 0:02:50]} 38... c5 {[%clk 1:10:08][%emt
0:00:30]} 39. d5 {[%clk 0:39:53][%emt 0:05:05]} 39... cxb4 {[%clk
1:07:10][%emt 0:03:27]} 40. Kd4 {[%clk 0:39:52][%emt 0:00:31]} 40... Rc7
{[%clk 1:06:25][%emt 0:01:15]} 41. e5+ {[%clk 0:39:09][%emt 0:01:13]} 41...
Kd7 {[%clk 1:06:39][%emt 0:00:16]} 42. f5 {[%clk 0:35:00][%emt 0:04:38]} 42...
gxf5 {[%clk 1:05:05][%emt 0:02:04]} 43. Rg7 {[%clk 0:35:20][%emt 0:00:10]}
43... Ke8 {[%clk 1:03:07][%emt 0:02:28]} 44. Rg8+ {[%clk 0:33:43][%emt
0:02:07]} 44... Kd7 {[%clk 1:02:56][%emt 0:00:42]} 45. Rg7 {[%clk
0:34:06][%emt 0:00:06]} 45... Kc8 {[%clk 0:49:33][%emt 0:13:54]} 46. d6 {[%clk
0:31:42][%emt 0:02:53]} 46... Rd7 {[%clk 0:49:21][%emt 0:00:42]} 47. Kd5
{[%clk 0:31:11][%emt 0:01:02]} 47... a5 {[%clk 0:47:36][%emt 0:02:15]} 48. Kc6
{[%clk 0:31:16][%emt 0:00:24]} 48... Rd8 {[%clk 0:38:56][%emt 0:09:10]} 49.
Rxf7 {[%clk 0:30:42][%emt 0:01:04]} 49... Rg8 {[%clk 0:38:00][%emt 0:01:26]}
50. Re7 {[%clk 0:30:39][%emt 0:00:33]} 50... a4 {[%clk 0:32:32][%emt 0:05:59]}
51. e6 {[%clk 0:29:39][%emt 0:01:29]} 51... b3 {[%clk 0:31:53][%emt 0:01:10]}
52. axb3 {[%clk 0:29:43][%emt 0:00:27]} 52... axb3 {[%clk 0:31:49][%emt
0:00:33]} 53. d7+ {[%clk 0:30:05][%emt 0:00:07]} 53... Kd8 {[%clk
0:31:33][%emt 0:00:47]} 54. Rh7 {[%clk 0:30:25][%emt 0:00:11]} 54... Rg6
{[%clk 0:31:05][%emt 0:00:58]} 55. Rh8+ {[%clk 0:30:46][%emt 0:00:09]} 55...
Ke7 {[%clk 0:31:29][%emt 0:00:05]} 56. d8=Q+ {[%clk 0:31:10][%emt 0:00:07]} 1-0

[White "VILLEMIN CHARTIER, Elias"]
[Black "PAPION, Simon"]
[WhiteElo "1900"]
[BlackElo "1718"]
[Result "1/2-1/2"]
[Date "2026.03.05"]

[Event "Chpt Reg Jeunes Occitanie 2026 - Espalion"]
[Site "Espalion, France"]
[Round "4.14"]
[ECO "?"]
[Annotator "?"]
[TimeControl "1h30 + 30sec/cp"]

1. e4 {[%clk 1:30:58][%emt 0:00:01]} 1... e6 {[%clk 1:30:52][%emt 0:00:08]} 2.
d4 {[%clk 1:31:26][%emt 0:00:03]} 2... d5 {[%clk 1:31:16][%emt 0:00:05]} 3.
Nc3 {[%clk 1:31:55][%emt 0:00:02]} 3... Bb4 {[%clk 1:30:40][%emt 0:01:06]} 4.
exd5 {[%clk 1:31:32][%emt 0:00:52]} 4... exd5 {[%clk 1:31:01][%emt 0:00:09]}
5. Bd3 {[%clk 1:31:59][%emt 0:00:04]} 5... Nf6 {[%clk 1:31:14][%emt 0:00:16]}
6. h3 {[%clk 1:31:49][%emt 0:00:40]} 6... O-O {[%clk 1:31:06][%emt 0:00:39]}
7. Qf3 {[%clk 1:31:37][%emt 0:00:41]} 7... Nc6 {[%clk 1:29:18][%emt 0:02:19]}
8. Nge2 {[%clk 1:32:02][%emt 0:00:05]} 8... h6 {[%clk 1:27:53][%emt 0:01:55]}
9. O-O {[%clk 1:32:10][%emt 0:00:22]} 9... Be6 {[%clk 1:26:34][%emt 0:01:49]}
10. Be3 {[%clk 1:28:26][%emt 0:04:13]} 10... Qd7 {[%clk 1:22:54][%emt 0:04:11]}
 11. Bxh6 {[%clk 1:26:17][%emt 0:02:40]} 11... Ne4 {[%clk 1:08:56][%emt
0:14:27]} 12. Nxe4 {[%clk 1:21:47][%emt 0:05:00]} 12... dxe4 {[%clk
1:07:34][%emt 0:01:53]} 13. Qg3 {[%clk 1:21:32][%emt 0:00:44]} 13... f5 {[%clk
1:07:09][%emt 0:00:54]} 14. Bb5 {[%clk 1:11:26][%emt 0:10:37]} 14... Nxd4
{[%clk 1:03:38][%emt 0:04:02]} 15. Nxd4 {[%clk 1:11:23][%emt 0:00:33]} 15...
Qxd4 {[%clk 1:03:57][%emt 0:00:10]} 16. c3 {[%clk 1:11:48][%emt 0:00:05]}
16... Bd6 {[%clk 1:03:24][%emt 0:01:01]} 17. Qg6 {[%clk 1:07:50][%emt 0:04:30]}
 17... Qf6 {[%clk 1:02:05][%emt 0:01:49]} 18. Qxf6 {[%clk 1:07:49][%emt
0:00:32]} 18... Rxf6 {[%clk 1:02:26][%emt 0:00:09]} 19. Bg5 {[%clk
1:08:09][%emt 0:00:10]} 19... Rg6 {[%clk 1:02:45][%emt 0:00:10]} 20. h4 {[%clk
1:08:35][%emt 0:00:05]} 20... Kf7 {[%clk 1:01:05][%emt 0:02:10]} 21. Be2
{[%clk 1:04:03][%emt 0:05:03]} 21... Rh8 {[%clk 1:00:51][%emt 0:00:43]} 22. f4
{[%clk 0:51:19][%emt 0:13:15]} 22... exf3 {[%clk 1:00:05][%emt 0:01:14]} 23.
Rxf3 {[%clk 0:51:35][%emt 0:00:15]} 23... Bc5+ {[%clk 0:58:55][%emt 0:01:40]}
24. Be3 {[%clk 0:51:47][%emt 0:00:19]} 24... Bxe3+ {[%clk 0:58:52][%emt
0:00:33]} 25. Rxe3 {[%clk 0:52:16]} 25... f4 {[%clk 0:58:53][%emt 0:00:28]}
26. h5 {[%clk 0:45:51][%emt 0:06:56]} 26... fxe3 {[%clk 0:59:04][%emt 0:00:19]}
 27. hxg6+ {[%clk 0:46:20][%emt 0:00:01]} 27... Kxg6 {[%clk 0:59:17][%emt
0:00:16]} 28. Bf3 {[%clk 0:46:39][%emt 0:00:11]} 28... b6 {[%clk 0:57:34][%emt
0:02:13]} 29. Re1 {[%clk 0:46:50][%emt 0:00:18]} 29... Bxa2 {[%clk
0:57:57][%emt 0:00:08]} 30. Rxe3 {[%clk 0:46:00][%emt 0:01:21]} 30... Kf6
{[%clk 0:57:57][%emt 0:00:29]} 31. Rd3 {[%clk 0:45:02][%emt 0:01:28]} 31...
Be6 {[%clk 0:58:19][%emt 0:00:09]} 32. Rd4 {[%clk 0:43:42][%emt 0:01:50]}
32... c5 {[%clk 0:58:05][%emt 0:00:44]} 1/2-1/2

[White "CASTEIL, Louis"]
[Black "BEUCHER, Simon"]
[WhiteElo "1487"]
[BlackElo "1765"]
[Result "0-1"]
[Date "2026.03.05"]

[Event "Chpt Reg Jeunes Occitanie 2026 - Espalion"]
[Site "Espalion, France"]
[Round "4.15"]
[ECO "?"]
[Annotator "?"]
[TimeControl "1h30 + 30sec/cp"]

1. e4 {[%clk 1:30:57][%emt 0:00:03]} 1... e6 {[%clk 1:30:30][%emt 0:00:31]} 2.
d4 {[%clk 1:31:06][%emt 0:00:20]} 2... d5 {[%clk 1:30:42][%emt 0:00:18]} 3.
exd5 {[%clk 1:31:20][%emt 0:00:17]} 3... exd5 {[%clk 1:29:56][%emt 0:01:15]}
4. Nf3 {[%clk 1:30:57][%emt 0:00:54]} 4... Nf6 {[%clk 1:29:54][%emt 0:00:32]}
5. Bg5 {[%clk 1:30:21][%emt 0:01:06]} 5... Be7 {[%clk 1:29:27][%emt 0:00:57]}
6. h3 {[%clk 1:28:58][%emt 0:01:51]} 6... h6 {[%clk 1:27:59][%emt 0:02:00]} 7.
Bh4 {[%clk 1:27:50][%emt 0:01:36]} 7... Bf5 {[%clk 1:28:08][%emt 0:00:22]} 8.
Bd3 {[%clk 1:26:41][%emt 0:01:39]} 8... Ne4 {[%clk 1:24:04][%emt 0:04:35]} 9.
Bxe7 {[%clk 1:25:52]} 9... Qxe7 {[%clk 1:23:29][%emt 0:02:24]} 10. O-O {[%clk
1:25:38][%emt 0:00:44]} 10... O-O {[%clk 1:22:08][%emt 0:01:51]} 11. Re1
{[%clk 1:24:49][%emt 0:01:19]} 11... Qf6 {[%clk 1:17:48][%emt 0:04:50]} 12.
Nbd2 {[%clk 1:22:22][%emt 0:02:53]} 12... Nxd2 {[%clk 1:17:19][%emt 0:01:03]}
13. Qxd2 {[%clk 1:22:43][%emt 0:00:10]} 13... Bxh3 {[%clk 1:13:36][%emt
0:04:12]} 14. gxh3 {[%clk 1:16:48][%emt 0:06:26]} 14... Qxf3 {[%clk
1:13:43][%emt 0:00:23]} 15. Re3 {[%clk 1:15:42][%emt 0:01:36]} 15... Qf6
{[%clk 1:12:20][%emt 0:01:53]} 16. Rg3 {[%clk 1:13:50][%emt 0:02:21]} 16...
Nd7 {[%clk 1:10:05][%emt 0:02:45]} 17. Kh2 {[%clk 1:13:02][%emt 0:01:17]}
17... Rfe8 {[%clk 1:08:05][%emt 0:02:32]} 18. Rag1 {[%clk 1:11:11][%emt
0:02:18]} 18... g5 {[%clk 0:58:53][%emt 0:09:45]} 19. h4 {[%clk 1:07:34][%emt
0:04:06]} 19... Kf8 {[%clk 0:52:37][%emt 0:06:47]} 20. hxg5 {[%clk
1:03:59][%emt 0:04:05]} 20... hxg5 {[%clk 0:51:51][%emt 0:01:16]} 21. Rxg5
{[%clk 1:00:00][%emt 0:04:28]} 21... Qh8+ {[%clk 0:50:21][%emt 0:02:00]} 22.
Kg2 {[%clk 0:57:57][%emt 0:02:34]} 22... Qxd4 {[%clk 0:48:08][%emt 0:02:43]}
23. Rg8+ {[%clk 0:54:39][%emt 0:03:49]} 23... Ke7 {[%clk 0:48:13][%emt
0:00:24]} 24. Re1+ {[%clk 0:53:12][%emt 0:01:57]} 24... Ne5 {[%clk
0:48:10][%emt 0:00:32]} 25. Rxe8+ {[%clk 0:53:01][%emt 0:00:42]} 25... Rxe8
{[%clk 0:48:00][%emt 0:00:40]} 26. Qg5+ {[%clk 0:49:55][%emt 0:03:34]} 26...
Kd6 {[%clk 0:46:26][%emt 0:02:06]} 27. f4 {[%clk 0:43:37][%emt 0:06:48]} 27...
Nxd3 {[%clk 0:42:13][%emt 0:04:42]} 28. Rxe8 {[%clk 0:40:53][%emt 0:03:14]}
28... Qf2+ {[%clk 0:40:03][%emt 0:02:40]} 29. Kh1 {[%clk 0:35:17][%emt
0:06:06]} 29... Qf3+ {[%clk 0:38:45][%emt 0:01:49]} 30. Qg2 {[%clk
0:30:03][%emt 0:05:44]} 30... Qxg2+ {[%clk 0:38:03][%emt 0:01:12]} 31. Kxg2
{[%clk 0:30:28][%emt 0:00:04]} 31... Nxf4+ {[%clk 0:38:27][%emt 0:00:07]} 32.
Kf3 {[%clk 0:30:51][%emt 0:00:07]} 32... Ne6 {[%clk 0:38:29][%emt 0:00:28]}
33. c3 {[%clk 0:29:15][%emt 0:02:06]} 33... f5 {[%clk 0:36:53][%emt 0:02:05]}
34. Ra8 {[%clk 0:28:22][%emt 0:01:23]} 34... a6 {[%clk 0:33:04][%emt 0:04:20]}
35. Rb8 {[%clk 0:28:36][%emt 0:00:16]} 35... b6 {[%emt 0:01:02]} 36. b4 {[%clk
0:28:31]} 36... d4 {[%clk 0:30:14][%emt 0:03:23]} 37. cxd4 {[%clk
0:25:37][%emt 0:03:24]} 37... Nxd4+ {[%clk 0:30:25][%emt 0:00:20]} 38. Kf4
{[%clk 0:25:51][%emt 0:00:15]} 38... Nc6 {[%clk 0:30:38][%emt 0:00:17]} 39.
Ra8 {[%clk 0:25:43][%emt 0:00:39]} 39... Nxb4 {[%clk 0:28:41][%emt 0:02:26]}
40. Kxf5 {[%clk 0:25:49][%emt 0:00:24]} 40... Nxa2 {[%clk 0:28:51][%emt
0:00:20]} 41. Rxa6 {[%clk 0:26:13][%emt 0:00:06]} 41... Nb4 {[%clk
0:28:44][%emt 0:00:37]} 42. Ra4 {[%clk 0:25:49][%emt 0:00:54]} 42... Kc5
{[%clk 0:27:51][%emt 0:01:24]} 43. Ke4 {[%clk 0:24:22][%emt 0:01:54]} 43...
Kc4 {[%clk 0:27:19][%emt 0:01:05]} 44. Ke3 {[%clk 0:23:02][%emt 0:01:49]}
44... Kb3 {[%clk 0:27:05][%emt 0:00:44]} 45. Ra7 {[%clk 0:22:48][%emt 0:00:44]}
 45... c5 {[%clk 0:27:10][%emt 0:00:27]} 46. Rb7 {[%clk 0:22:32][%emt 0:00:43]}
 46... Nd5+ {[%clk 0:26:25][%emt 0:01:16]} 47. Ke4 {[%clk 0:22:11][%emt
0:00:49]} 47... Kc4 {[%clk 0:26:24][%emt 0:00:33]} 48. Rb8 {[%clk
0:21:19][%emt 0:01:20]} 48... b5 {[%clk 0:26:23][%emt 0:00:33]} 49. Rd8 {[%clk
0:20:19][%emt 0:01:30]} 49... Nc3+ {[%clk 0:26:19][%emt 0:00:34]} 50. Ke3
{[%clk 0:20:05][%emt 0:00:44]} 50... Kb3 {[%clk 0:25:46][%emt 0:01:03]} 51.
Kd2 {[%clk 0:20:01][%emt 0:00:33]} 51... c4 {[%clk 0:25:45][%emt 0:00:32]} 52.
Kc1 {[%clk 0:19:16][%emt 0:01:15]} 52... b4 {[%clk 0:24:26][%emt 0:01:50]} 53.
Rc8 {[%clk 0:18:55][%emt 0:00:50]} 53... Ne2+ {[%clk 0:22:51][%emt 0:02:05]}
54. Kd1 {[%clk 0:18:04][%emt 0:01:17]} 54... c3 {[%clk 0:21:08][%emt 0:02:17]}
55. Kxe2 {[%clk 0:16:44][%emt 0:01:50]} 55... Kc2 {[%clk 0:20:58][%emt
0:00:40]} 56. Rb8 {[%clk 0:14:21][%emt 0:02:54]} 56... b3 {[%clk 0:21:00][%emt
0:00:27]} 57. Rxb3 {[%clk 0:14:47][%emt 0:00:05]} 57... Kxb3 {[%clk
0:21:22][%emt 0:00:07]} 58. Kd1 {[%clk 0:15:12][%emt 0:00:06]} 58... Kb2
{[%clk 0:21:45][%emt 0:00:07]} 0-1

[White "BAUER, Pierre"]
[Black "VALMIR, Clovis"]
[WhiteElo "2174"]
[BlackElo "2006"]
[Result "1-0"]
[Date "2026.03.06"]